[Event "German Bundesliga 2022-23"]
[Site "Germany"]
[Date "2022.11.27"]
[Round "4.6"]
[White "Deuer, Marius"]
[Black "Babula, Vlastimil"]
[Result "1/2-1/2"]
[ECO "E46"]
[WhiteElo "2338"]
[BlackElo "2551"]
[Annotator "TA"]
[PlyCount "50"]
[EventDate "2022.10.21"]
[EventType "team-tourn"]
[EventCountry "GER"]
[SourceTitle "playchess.com"]
[Source "ChessBase"]
[SourceQuality "1"]
[TimeControl "40/6000+30:3000+30"]

{[%evp 19,50,-8,8,-20,0,-7,2,0,14,0,23,0,0,0,33,0,0,0,0,0,0,-40,-3,-8,-16,-7,11,10,14,1,13,12,17]} 1. d4 {[%emt 0:00:04]} Nf6 {[%emt 0:00:08]} 2. c4 {[%emt 0:00:07]} e6 {[%emt 0:00:16]} 3. Nc3 {[%emt 0:00:13]} Bb4 {[%emt 0:00:13]} 4. e3 {[%emt 0:00:09]} O-O {[%emt 0:00:39]} 5. Nge2 {[%emt 0:00:15]} d5 {[%emt 0:01:00]} 6. a3 {[%emt 0:00:16]} Be7 {[%emt 0:00:44]} 7. cxd5 {[%emt 0:00:25]} exd5 {[%emt 0:00:22]} 8. Nf4 {[%emt 0:00:10]} Re8 {[%emt 0:01:24]} 9. Bd3 {[%emt 0:01:19]} c6 {[%emt 0:02:26]} 10. O-O {[%emt 0:00:52]} Nbd7 {[%emt 0:00:22]} 11. Bd2 {[%emt 0:05:06] E46: Nimzo-Indian: Rubinstein: 4 e3 0-0 5 Ne2 without early Bd3.} Nf8 {[%emt 0:02:38]} 12. Rc1 {[%emt 0:08:42] [#]} Ne6 $146 {[%emt 0:03:04]} ({Predecessor:} 12... Ng6 13. Nxg6 hxg6 14. Qc2 Bd6 15. Ne2 Ne4 16. Be1 Qe7 17. Ng3 Nxg3 18. hxg3 Qf6 {½-½ (32) Pitirotjirathon,J (2216)-Portugalera,R (2220) Bangkok 2015}) 13. Nxe6 {[%emt 0:07:02]} Bxe6 {[%emt 0:00:26]} 14. f3 {[%emt 0:02:23]} Bd6 {[%emt 0:09:02]} 15. Ne2 {[%emt 0:04:14]} Qc7 {[%emt 0:04:55]} 16. h3 {[%emt 0:09:15]} Rad8 {[%emt 0:13:46]} 17. b4 {[%emt 0:05:47]} Bc8 {[%emt 0:05:36]} 18. Qe1 {[%emt 0:07:29]} Nh5 {[%emt 0:16:50]} 19. Qh4 {[%emt 0:18:16]} g6 {[%emt 0:00:47]} 20. Qf2 {[%emt 0:01:41]} Ng3 {[%emt 0:12:23]} 21. Nxg3 {[%emt 0:00:58] The position is equal.} Bxg3 {[%emt 0:00:05]} 22. Qe2 {[%emt 0:00:06]} Qe7 {[%emt 0:14:18][%cal Og3f4]} 23. f4 {[%emt 0:08:35]} Bh4 {[%emt 0:06:24]} 24. a4 {[%emt 0:01:53]} Bf6 {[%emt 0:03:19][%cal Of6d4]} 25. Qd1 {[%emt 0:02:55]} a6 {A balanced but interesting game.   Weighted Error Value: White=0.10 (very precise) /Black=0.12 (very precise)} 1/2-1/2

[Event "German Bundesliga 2022-23"]
[Site "Germany"]
[Date "2022.11.27"]
[Round "4.7"]
[White "Pruijssers, Roeland"]
[Black "Vyval, Volodymyr"]
[Result "1-0"]
[ECO "B23"]
[WhiteElo "2547"]
[BlackElo "2305"]
[Annotator "TA"]
[PlyCount "101"]
[EventDate "2022.10.21"]
[EventType "team-tourn"]
[EventCountry "GER"]
[SourceTitle "playchess.com"]
[Source "ChessBase"]
[SourceQuality "1"]
[TimeControl "40/6000+30:3000+30"]

{[%evp 11,100,-16,17,24,16,18,24,41,25,16,10,10,10,0,49,12,78,70,66,27,36,39,59,33,35,10,32,12,22,0,59,54,63,58,77,47,60,56,70,51,56,47,71,71,87,84,89,77,106,59,53,62,82,56,54,60,56,50,113,99,103,103,165,183,358,360,361,389,969,931,1467,1408,1185,1167,1500,1392,1388,1308,1300,1412,1588,1427,2081,1866,2058,1864,29988,29989,29990,29991,29999]} 1. e4 {[%emt 0:00:04]} c5 {[%emt 0:00:29]} 2. Nc3 {[%emt 0:00:08]} d6 {[%emt 0:00:08]} 3. f4 {[%emt 0:00:17]} Nc6 {[%emt 0:00:43]} 4. Nf3 {[%emt 0:01:07]} g6 {[%emt 0:02:04]} 5. Bc4 {[%emt 0:03:56]} Bg7 {[%emt 0:04:00]} 6. O-O {[%emt 0:00:16]} Na5 {[%emt 0:05:35]} 7. Bb5+ {[%emt 0:12:02] B23: Closed Sicilian: Lines without g3.} Bd7 {[%emt 0:00:38]} 8. Qe2 {[%emt 0:00:09]} a6 {[%emt 0:02:37]} 9. Bxd7+ {[%emt 0:00:19] White has an edge.} Qxd7 {[%emt 0:00:09]} 10. d3 {[%emt 0:09:42]} Nc6 {[%emt 0:01:03] [#]} 11. f5 $146 {[%emt 0:10:41]} ({Predecessor:} 11. Nd5 Qd8 12. f5 Nf6 13. Bg5 O-O 14. Bxf6 Bxf6 15. Nxf6+ exf6 16. Qe3 Kg7 17. h4 {1-0 (42) Grabarczyk,B (2365)-Yagupov,I (2425) Polanica Zdroj 1993}) 11... Nf6 {[%emt 0:15:33]} 12. Bg5 {[%emt 0:03:12]} O-O {[%emt 0:10:20]} (12... O-O-O $11) 13. Qf2 {[%emt 0:10:47]} Rac8 {[%emt 0:17:38]} (13... gxf5 $11 14. Bxf6 Bxf6) 14. Rae1 $16 {[%emt 0:01:46]} b5 {[%emt 0:01:46]} 15. Bxf6 {[%emt 0:21:53]} (15. Qh4 {with more complications.} Nd4 16. Rf2 Rfe8 17. Qh3) 15... Bxf6 {[%emt 0:01:11]} 16. Nd5 {[%emt 0:00:07] Prevents e6.} Qd8 {[%emt 0:03:12] Prevents Nb6.} 17. Nxf6+ {[%emt 0:02:14]} exf6 {[%emt 0:00:04]} 18. Qh4 {[%emt 0:00:49]} Kg7 {[%emt 0:00:54] Prevents Qh6+.} 19. Rf2 {[%emt 0:04:42]} Ne5 {[%emt 0:01:46]} 20. Nd2 {[%emt 0:00:36][%cal Bf3d2,Bd2f1,Bf1e3,Be3d5][%mdl 32]} Qe7 {[%emt 0:08:30]} (20... Qa5 $11) 21. Nf1 $14 {[%emt 0:01:25]} Qa7 {[%emt 0:07:39]} 22. Rd1 {[%emt 0:02:17]} g5 {[%emt 0:14:08]} 23. Qh5 {[%emt 0:00:09]} h6 {[%emt 0:00:15]} 24. Ne3 {[%emt 0:01:04]} Rfe8 {[%emt 0:00:39]} 25. Kh1 {[%emt 0:05:44]} Rh8 {[%emt 0:04:02]} 26. Nd5 {[%emt 0:01:49]} Rhe8 {[%emt 0:00:55]} 27. Re2 {[%emt 0:00:58]} Nc6 {[%emt 0:00:45]} 28. c3 {[%emt 0:01:20]} Rh8 {[%emt 0:02:18]} 29. Red2 {[%emt 0:05:12] White has more active pieces.} Rce8 {[%emt 0:00:29]} 30. h3 {[%emt 0:00:20]} (30. Qg4 $16) 30... Ne7 {[%emt 0:00:32]} 31. Ne3 {[%emt 0:00:14]} Nc6 {[%emt 0:00:06]} 32. Qf3 {[%emt 0:00:14]} h5 {[%emt 0:01:13]} 33. h4 {[%emt 0:01:34] Black must now prevent hxg5.} Ne5 {[%emt 0:01:45]} 34. Qg3 {[%emt 0:00:12]} g4 {[%emt 0:02:04] White now steadily converts the win.} (34... Ng4 $1 $14) 35. Nd5 $36 {[%emt 0:01:26][%mdl 2048] White has strong initiative.} Qb8 {[%emt 0:01:03]} 36. Qf4 {[%emt 0:00:36][%cal Od5f6] Nxf6! is the strong threat.} Qd8 {[%emt 0:00:32] [#]} (36... Rhg8 $16 {was worth a try.}) 37. b3 $1 $18 {[%emt 0:00:09]} Kh7 $2 {[%emt 0:00:54]} (37... c4) 38. d4 {[%emt 0:00:28]} cxd4 {[%emt 0:00:49]} 39. cxd4 {[%emt 0:00:02]} Nc6 {[%emt 0:00:25]} (39... Nd7 40. Qxd6 Kg7) 40. Rc2 {[%emt 0:02:10]} Nb8 {[%emt 0:00:33]} 41. Rdc1 {[%emt 0:52:48]} Kg7 {[%emt 0:09:07]} 42. Rc7 {[%emt 0:00:00]} Rhg8 {[%emt 0:03:36]} 43. b4 {[%emt 0:00:00]} a5 {[%emt 0:03:37]} 44. a3 {[%emt 0:00:00]} axb4 {[%emt 0:00:40]} 45. axb4 {[%emt 0:00:00]} Na6 {[%emt 0:02:40]} 46. R7c6 {[%emt 0:00:00]} Nxb4 {[%emt 0:01:45]} 47. Nxb4 {[%emt 0:00:00]} Qe7 {[%emt 0:02:36]} 48. Re1 {[%emt 0:00:00][%cal Ob4d5] Threatens to win with Nd5!} Rd8 {[%emt 0:00:13]} 49. Nd5 {[%emt 0:00:00] White mates.} Qa7 {[%emt 0:00:36] [#]} 50. Nxf6 $1 {[%emt 0:00:00][%mdl 512]} Kxf6 {[%emt 0:00:48]} (50... Rh8 51. Qg5+) 51. Qe5# {Weighted Error Value: White=0.11 (very precise) /Black=0.37} 1-0

[Event "German Bundesliga 2022-23"]
[Site "Germany"]
[Date "2022.11.27"]
[Round "4.8"]
[White "Saric, Ante"]
[Black "Wachinger, Nikolas"]
[Result "1/2-1/2"]
[ECO "E06"]
[WhiteElo "2504"]
[BlackElo "2434"]
[Annotator "TA"]
[PlyCount "50"]
[EventDate "2022.10.21"]
[EventType "team-tourn"]
[EventCountry "GER"]
[SourceTitle "playchess.com"]
[Source "ChessBase"]
[SourceQuality "1"]
[TimeControl "40/6000+30:3000+30"]

{[%evp 20,50,14,7,106,95,90,89,116,118,122,125,135,54,52,45,54,52,57,54,77,42,52,54,64,42,56,0,91,0,57,0,76]} 1. d4 {[%emt 0:00:34]} Nf6 {[%emt 0:00:09]} 2. c4 {[%emt 0:00:06]} e6 {[%emt 0:00:07]} 3. Nf3 {[%emt 0:00:03]} d5 {[%emt 0:00:09]} 4. g3 {[%emt 0:00:04]} Be7 {[%emt 0:00:09]} 5. Bg2 {[%emt 0:00:09]} O-O {[%emt 0:00:10]} 6. O-O {[%emt 0:00:05]} dxc4 {[%emt 0:00:09]} 7. Qa4 {[%emt 0:00:06]} a6 {[%emt 0:00:19]} 8. Qxc4 {[%emt 0:00:05]} b5 {[%emt 0:00:07]} 9. Qc2 {[%emt 0:00:06]} Bb7 {[%emt 0:00:17]} 10. Bf4 {[%emt 0:00:23]} Nc6 {[%emt 0:07:45]} 11. Nc3 {[%emt 0:01:36]} Nxd4 {[%emt 0:18:38] E05: Open Catalan: 5 Nf3 Be7.} (11... Nb4 $11 12. Qd2 c5) 12. Nxd4 $16 {[%emt 0:02:42]} Bxg2 {[%emt 0:00:15][%cal Bb7g2,Bg2h3,Bh3e6][%mdl 32] [#]} 13. Rfd1 {[%emt 0:05:16] [#]} Bh3 $146 {[%emt 0:15:14] [#] White is better.} ({Predecessor:} 13... Bb7 14. Nxe6 Qc8 15. Nxf8 Qh3 {½-½ (15) Roos,T (2142)-Leuranguer,Y (2251) Germany 2018}) 14. Nxe6 $1 {[%emt 0:05:41][%mdl 576] Discovered Attack. White is more active.} Bxe6 {[%emt 0:00:18]} 15. Rxd8 {[%emt 0:00:06]} Rfxd8 {[%emt 0:00:07]} 16. Ne4 {[%emt 0:26:40] Inhibits c5.} ({Worse is} 16. Bxc7 Rdc8 17. Be5 b4 $17) (16. Bg5 $16) 16... Nxe4 $1 $14 {[%emt 0:14:24]} 17. Qxe4 {[%emt 0:00:16]} c5 {[%emt 0:00:22]} 18. Bc7 {[%emt 0:24:46][%cal Bf4c7,Bc7a5,Ba5c3][%mdl 32]} Rd5 {[%emt 0:02:24]} 19. Qc2 {[%emt 0:01:32]} Rc8 {[%emt 0:11:05]} 20. e4 {[%emt 0:16:28]} Rd7 {[%emt 0:06:49]} 21. Ba5 {[%emt 0:00:36]} Rd4 {[%emt 0:14:01]} 22. Bc3 {[%emt 0:04:13]} Rdd8 {[%emt 0:02:38]} 23. Ba5 {[%emt 0:03:25] Prevents b4.} Rd4 {[%emt 0:00:43]} 24. Bc3 {[%emt 0:02:48] Prevents c4.} Rdd8 {[%emt 0:01:02]} 25. Ba5 {[%emt 0:01:44]} Rd4 {Weighted Error Value: White=0.30/Black=0.13 (very precise)} 1/2-1/2

[Event "German Bundesliga 2022-23"]
[Site "Germany"]
[Date "2022.11.27"]
[Round "4.8"]
[White "Dgebuadze, Alexandre"]
[Black "Kozak, Adam"]
[Result "0-1"]
[ECO "A36"]
[WhiteElo "2420"]
[BlackElo "2538"]
[Annotator "TA"]
[PlyCount "140"]
[EventDate "2022.10.21"]
[EventType "team-tourn"]
[EventCountry "GER"]
[SourceTitle "playchess.com"]
[Source "ChessBase"]
[SourceQuality "1"]
[TimeControl "40/6000+30:3000+30"]

{[%evp 9,140,6,4,-10,-3,-6,0,-4,-2,-13,-10,-20,-11,-16,4,0,0,0,0,0,1,0,12,2,0,-7,-18,-12,-12,-16,-21,-22,-22,-31,-18,-45,-50,-50,-39,-51,-44,-64,-68,-72,-37,-49,-30,-27,-8,-82,-66,-78,-62,-81,-20,-52,-23,-77,-45,-81,-71,-49,-52,-49,-58,-59,-54,-62,0,-81,-45,-335,-311,-313,-337,-329,-312,-391,-391,-390,-372,-379,-348,-365,-313,-371,-232,-329,-336,-360,-358,-417,-355,-417,-406,-408,-384,-459,-455,-442,-417,-410,-371,-722,-713,-574,-429,-402,-213,-208,-210,-179,-127,-758,-758,-12838,-12839,-12839,-12839,-12840,-12840,-12841,-12841,-12836,-168,-12837,-12837,-12842,-12843,-29980,-29981,-29981,-29982]} 1. c4 {[%emt 0:00:34]} c5 {[%emt 0:03:41]} 2. Nc3 {[%emt 0:00:47]} Nc6 {[%emt 0:00:08]} 3. g3 {[%emt 0:00:48]} g6 {[%emt 0:01:27]} 4. Bg2 {[%emt 0:00:08]} Bg7 {[%emt 0:00:20]} 5. d3 {[%emt 0:00:49]} Rb8 {[%emt 0:03:12]} 6. Nh3 {[%emt 0:06:14] [#] A36: Symmetrical English vs ...g6: 4 Bg2 Bg7.} d6 $146 {[%emt 0:06:45]} ({Predecessor:} 6... a6 7. a4 d6 8. Nf4 e6 9. h4 h6 10. e3 Nge7 11. h5 g5 12. Nfe2 d5 13. cxd5 exd5 {0-1 (24) Luce,S (2400)-Ionescu,C (2280) Calimanesti 1992}) 7. Nf4 {[%emt 0:00:13]} e6 {[%emt 0:02:57]} 8. h4 {[%emt 0:02:20] The position is equal.} h6 {[%emt 0:01:04]} 9. Bd2 {[%emt 0:11:39]} Nge7 {[%emt 0:00:57]} 10. a3 {[%emt 0:01:37][%cal Ob2b4]} b6 {[%emt 0:07:34]} 11. b4 {[%emt 0:02:24]} Bb7 {[%emt 0:02:03]} 12. Rb1 {[%emt 0:03:17]} Qd7 {[%emt 0:01:50]} 13. Qa4 {[%emt 0:04:23]} O-O {[%emt 0:05:44]} 14. O-O {[%emt 0:04:27]} Ba8 {[%emt 0:04:58]} 15. e4 {[%emt 0:03:08]} Rbd8 {[%emt 0:03:54]} 16. Qd1 {[%emt 0:15:49]} Nd4 {[%emt 0:05:03]} 17. Nfe2 {[%emt 0:03:42]} f5 {[%emt 0:10:02]} 18. Nxd4 {[%emt 0:09:03]} cxd4 {[%emt 0:01:34]} 19. Ne2 {[%emt 0:00:44]} fxe4 {[%emt 0:03:25]} 20. dxe4 {[%emt 0:00:12]} e5 {[%emt 0:00:32] Against Nf4} 21. Qb3 {[%emt 0:05:39]} Qe6 {[%emt 0:02:23]} 22. Qd3 {[%emt 0:00:37]} Kh8 {[%emt 0:05:53]} 23. Rbc1 {[%emt 0:05:37]} Bb7 {[%emt 0:07:52]} 24. Kh2 {[%emt 0:02:31]} Ng8 {[%emt 0:00:53]} 25. Bh3 {[%emt 0:02:37]} Qe7 {[%emt 0:01:23] Black is more active.} 26. Rc2 {[%emt 0:07:36]} Rf7 {[%emt 0:05:41]} 27. f3 {[%emt 0:02:28]} Rdf8 {[%emt 0:01:52]} 28. Nc1 {[%emt 0:00:33][%cal Oc4c5]} Rf6 {[%emt 0:10:07][%cal Ob6b5] Prevents c5.} 29. Be1 {[%emt 0:03:44]} (29. a4 $11) 29... Qf7 $17 {[%emt 0:06:23][%cal Rf6f3]} 30. Rcf2 {[%emt 0:00:11]} Ba6 {[%emt 0:00:41]} 31. b5 {[%emt 0:00:06]} Bb7 {[%emt 0:00:30]} (31... Bc8 $17) 32. Nb3 {[%emt 0:05:13]} a5 {[%emt 0:01:05]} (32... g5 {seems wilder.} 33. f4 gxf4 34. gxf4 Qh5) 33. a4 {[%emt 0:01:14]} (33. f4 $11 {remains equal.}) 33... Qe7 {[%emt 0:01:13]} 34. Nd2 {[%emt 0:03:44]} R6f7 {[%emt 0:02:16]} 35. f4 {[%emt 0:01:48]} Nf6 {[%emt 0:01:15]} 36. f5 {[%emt 0:01:25]} gxf5 {[%emt 0:00:21]} 37. Bxf5 {[%emt 0:00:12]} Nd7 {[%emt 0:01:30]} 38. Nb3 {[%emt 0:01:04]} Nf6 {[%emt 0:00:01]} 39. Nd2 {[%emt 0:00:19]} h5 {[%emt 0:00:44][%cal Bh6h5,Bh5g4][%mdl 32]} 40. Nf3 $2 {[%emt 0:00:40][%mdl 8192] [#]} (40. Qe2 $15) 40... Ng4+ $1 $19 {[%emt 0:00:43]} 41. Bxg4 {[%emt 0:50:09]} hxg4 {[%emt 0:50:17]} 42. Nd2 {[%emt 0:00:00]} Rxf2+ {[%emt 0:00:00]} 43. Rxf2 {[%emt 0:00:00]} Rxf2+ {[%emt 0:00:00]} 44. Bxf2 {[%emt 0:00:00]} Qf6 {[%emt 0:00:00]} 45. Kg1 {[%emt 0:00:00]} Qg6 {[%emt 0:00:00]} 46. Kf1 {[%emt 0:00:00]} Kg8 {[%emt 0:00:00]} 47. Ke2 {[%emt 0:00:00]} Kf8 {[%emt 0:00:00]} 48. Kd1 {[%emt 0:00:00]} (48. Be3 $142) 48... Ke7 {[%emt 0:00:00]} 49. Qe2 {[%emt 0:00:00]} Bh6 {[%emt 0:00:00]} 50. Kc2 {[%emt 0:00:00]} Ke6 {[%emt 0:00:00]} 51. Kb2 {[%emt 0:00:00]} Bxd2 {[%emt 0:00:00]} 52. Qxd2 {[%emt 0:00:00]} Bxe4 {[%emt 0:00:00][%mdl 4096] Endgame KQB-KQB} 53. Qe1 {[%emt 0:00:00]} Qf5 {[%emt 0:00:00]} 54. Qd2 {[%emt 0:00:00]} Kd7 {[%emt 0:00:00]} 55. Be1 {[%emt 0:00:00]} Bd3 {[%emt 0:00:00]} 56. c5 $2 {[%emt 0:00:00]} (56. Bf2) 56... dxc5 {[%emt 0:00:00]} 57. Qh6 {[%emt 0:00:00]} Qg6 {[%emt 0:00:00]} 58. Qh8 {[%emt 0:00:00]} Ke6 {[%emt 0:02:10]} (58... Bb1 $142 {( -> ...Qc2+)} 59. Ka1 Bc2 60. Qxe5 Qe6 61. Qg7+ Kd6) 59. h5 {[%emt 0:01:34] aiming for Qc8+.} Qf7 {[%emt 0:02:48] White must now prevent ...c4.} 60. Qc8+ {[%emt 0:01:41] [#]} Kf6 $1 {[%emt 0:01:34] Threatens to win with ...c4.} 61. h6 $2 {[%emt 0:04:26][%mdl 8192]} (61. Bd2 $17) 61... c4 {[%emt 0:02:04][%cal Bc5c4,Bc4c3][%mdl 32]} 62. Qxg4 {[%emt 0:02:45]} c3+ {[%emt 0:00:51]} 63. Kc1 {[%emt 0:01:07]} Qg6 {[%emt 0:01:29]} 64. Qf3+ {[%emt 0:00:31]} Bf5 {[%emt 0:00:31]} 65. Qc6+ {[%emt 0:00:31]} Kg5 {[%emt 0:00:00]} 66. g4 {[%emt 0:00:20]} Bxg4 $2 {[%emt 0:01:13]} (66... Be4 67. Qxg6+ Kxg6) 67. Bh4+ $2 {[%emt 0:00:42]} (67. h7 Qxh7 68. Bxc3) 67... Kh5 {[%emt 0:00:23]} (67... Kxh4 {leads to mate.} 68. Qxg6 Bh5 69. Qe4+ Kg3 70. h7 d3 71. Qxd3+ (71. h8=R d2+ 72. Kc2 d1=Q+ 73. Kxc3 Qa1+ 74. Kd3 Qd1+ 75. Kc3 Qa1+ 76. Kc4 Qxa4+ 77. Kd5 Bf3 $11) 71... Kf2 72. h8=Q) 68. Qxg6+ {[%emt 0:00:30]} Kxg6 {[%emt 0:00:01]} 69. Bg3 {[%emt 0:00:32]} d3 {[%emt 0:00:09][%cal Bd4d3,Bd3d2][%mdl 32]} (69... Kxh6 70. Bxe5 Be6 71. Bxd4 $11) 70. Be1 {[%emt 0:00:17]} d2+ {[%emt 0:00:04] Weighted Error Value: White=0.33/Black=0.23 (precise)} ({Worse is} 70... Kxh6 71. Bxc3 e4 72. Kd2 $15) 0-1

[Event "German Bundesliga 2022-23"]
[Site "Germany"]
[Date "2022.11.27"]
[Round "4.9"]
[White "Ivic, Velimir"]
[Black "Vitiugov, Nikita"]
[Result "1/2-1/2"]
[ECO "C88"]
[WhiteElo "2560"]
[BlackElo "2726"]
[Annotator "TA"]
[PlyCount "70"]
[EventDate "2022.10.21"]
[EventType "team-tourn"]
[EventCountry "GER"]
[SourceTitle "playchess.com"]
[Source "ChessBase"]
[SourceQuality "1"]
[TimeControl "40/6000+30:3000+30"]

{[%evp 19,70,17,12,6,0,0,0,-7,18,39,38,38,38,38,43,32,44,31,38,38,48,42,39,0,14,27,20,29,39,-121,-122,-134,-128,-135,-119,-126,-118,-121,-110,-88,-113,-109,-117,-95,0,0,0,0,0,0,0,0,15]} 1. e4 {[%emt 0:00:07]} e5 {[%emt 0:00:20]} 2. Nf3 {[%emt 0:00:10]} Nc6 {[%emt 0:00:06]} 3. Bb5 {[%emt 0:00:16]} a6 {[%emt 0:00:06]} 4. Ba4 {[%emt 0:00:05]} Nf6 {[%emt 0:00:06]} 5. O-O {[%emt 0:00:12]} Be7 {[%emt 0:00:12]} 6. Re1 {[%emt 0:00:11]} b5 {[%emt 0:00:15]} 7. Bb3 {[%emt 0:00:05]} O-O {[%emt 0:00:09]} 8. a4 {[%emt 0:00:18]} b4 {[%emt 0:00:54]} 9. d4 {[%emt 0:00:11]} d6 {[%emt 0:00:20]} 10. dxe5 {[%emt 0:00:18]} Nxe5 {[%emt 0:00:21]} 11. Nbd2 {[%emt 0:00:23] C88: Closed Ruy Lopez: Anti-Marshall Systems.} Nfd7 {[%emt 0:01:38] [#]} 12. a5 $5 $146 {[%emt 0:00:28][%mdl 8] New and interesting.} ({Predecessor:} 12. Nxe5 Nxe5 13. Nf1 Bf6 14. Ne3 c6 15. a5 Be6 16. f4 Ng6 17. Nc4 Bxc4 18. Bxc4 Re8 {½-½ (52) Vachier Lagrave,M (2758)-Esipenko,A (2723) Chess.com INT 2022}) 12... Bf6 {[%emt 0:04:47]} 13. Nd4 {[%emt 0:02:52]} Bb7 {[%emt 0:08:11]} 14. Ra4 {[%emt 0:01:03][%cal Ba1a4,Ba4b4,Bb4b3,Bb3h3][%mdl 32]} Nc6 {[%emt 0:20:04]} 15. Nxc6 {[%emt 0:00:37]} Bxc6 {[%emt 0:00:04]} 16. Rxb4 {[%emt 0:00:06]} Bb5 {[%emt 0:00:36]} 17. Ba2 {[%emt 0:09:53]} c5 {[%emt 0:04:34]} 18. Rb3 {[%emt 0:00:15]} c4 {[%emt 0:03:38]} 19. Rh3 {[%emt 0:16:33]} Rc8 {[%emt 0:01:51]} 20. b4 {[%emt 0:16:00] Strongly threatening Qh5.} (20. Qh5 $5 h6 $8 21. Nf1 $14) 20... cxb3 {[%emt 0:03:15]} 21. Nxb3 {[%emt 0:00:49]} (21. Bxb3 $5 {[%cal Rd1h5]} Qxa5 22. Nb1 $11 (22. Qh5 h6 $11)) 21... g6 {[%emt 0:03:30][%cal Bg7g6,Bg6f5][%mdl 32] Inhibits Qh5.} 22. Nd4 {[%emt 0:13:20]} Bc4 {[%emt 0:15:17]} 23. Bxc4 {[%emt 0:05:43]} Rxc4 {[%emt 0:00:12]} 24. Nf5 {[%emt 0:03:44]} gxf5 $17 {[%emt 0:02:19]} 25. Qh5 {[%emt 0:00:29][%csl Gh3][%cal Rh5h7] [#]} Re8 {[%emt 0:02:19]} 26. Qxh7+ {[%emt 0:02:53]} Kf8 {[%emt 0:00:08]} 27. Bh6+ {[%emt 0:05:04]} (27. Qxf5 $2 {perishes.} Re5 28. Bh6+ Ke7 $19) 27... Ke7 {[%emt 0:00:46]} 28. Qxf5 {[%emt 0:02:52]} Rc5 {[%emt 0:06:05]} (28... Rxc2 $2 29. e5 Qc8 30. exf6+ Kd8 31. Rxe8+ Kxe8 32. Re3+ Kd8 33. h3 $18) 29. e5 {[%emt 0:03:24]} Rxe5 {[%emt 0:04:38]} (29... Qxa5 $2 30. exf6+ Kd8 31. Rxe8+ Kxe8 32. Re3+ Re5 33. g3 Qa1+ 34. Kg2 Rxe3 35. Bxe3 Qxf6 36. Qxf6 Nxf6 37. Bd2 $18) 30. Rxe5+ {[%emt 0:05:40]} Nxe5 {[%emt 0:02:14]} 31. f4 {[%emt 0:02:34] [#]} Qc8 {[%emt 0:06:58]} ({Much worse is} 31... Qd7 $6 32. Qe4 $14) (31... Nc4 $1 $17 {Hoping for ...Bd4+.} 32. Bg5 (32. Qe4+ $2 Kd7 $19) 32... Bxg5 33. Qxg5+ Kd7 34. Qf5+ Kc6 35. Qxf7 Re1+ 36. Kf2 Re4) 32. Qe4 $11 {[%emt 0:04:57][%mdl 64] Pin. The position is equal.} Qc6 {[%emt 0:07:53]} 33. Re3 {[%emt 0:01:57]} Qxe4 {[%emt 0:00:59]} 34. Rxe4 {[%emt 0:00:04][%mdl 64] Pin} Rc8 {[%emt 0:00:32]} 35. fxe5 {[%emt 0:01:53]} Bxe5 {[%emt 0:00:38] Weighted Error Value: White=0.13 (very precise) /Black=0.08 (flawless)} 1/2-1/2